[Event "Titled Tuesday Blitz June 6 Early 2023"]
[White "Petrosyan, Manuel"]
[Black "Principe, Gerson"]
[WhiteFideId "13300857"]
[BlackFideId "3804550"]
[WhiteElo "2576"]
[BlackElo "2229"]
[Result "1-0"]
[Round "3"]
[TimeControl "180+2"]
[Date "2023.06.06"]
[WhiteClock "0:00:05"]
[BlackClock "0:00:04"]
[Board "46"]

1. e4 {[%clk 0:02:16]}  c5 {[%clk 0:02:58]} 2. Nf3 {[%clk 0:02:15]}  e6 {[%clk 0:02:58]} 3. c3 {[%clk 0:02:14]}  d5 {[%clk 0:02:55]} 4. exd5 {[%clk 0:02:14]}  exd5 {[%clk 0:02:55]} 5. Bb5+ {[%clk 0:02:10]}  Bd7 {[%clk 0:02:55]} 6. Qe2+ {[%clk 0:02:09]}  Be7 {[%clk 0:02:52]} 7. d4 {[%clk 0:02:07]}  cxd4 {[%clk 0:02:28]} 8. Nxd4 {[%clk 0:02:07]}  Nf6 {[%clk 0:02:17]} 9. Nf5 {[%clk 0:01:58]}  Kf8 {[%clk 0:01:42]} 10. Bd3 {[%clk 0:01:35]}  Bxf5 {[%clk 0:01:40]} 11. Bxf5 {[%clk 0:01:35]}  Nc6 {[%clk 0:01:33]} 12. O-O {[%clk 0:01:34]}  h6 {[%clk 0:01:34]} 13. Nd2 {[%clk 0:01:24]}  g6 {[%clk 0:01:33]} 14. Bd3 {[%clk 0:01:24]}  Kg7 {[%clk 0:01:34]} 15. Nf3 {[%clk 0:01:21]}  Re8 {[%clk 0:01:33]} 16. Qd2 {[%clk 0:01:09]}  Ng8 {[%clk 0:01:32]} 17. Qf4 {[%clk 0:01:03]}  Qd6 {[%clk 0:01:26]} 18. Be3 {[%clk 0:00:53]}  Rad8 {[%clk 0:01:23]} 19. Rad1 {[%clk 0:00:53]}  Qxf4 {[%clk 0:01:13]} 20. Bxf4 {[%clk 0:00:53]}  Bf6 {[%clk 0:01:13]} 21. Bb5 {[%clk 0:00:48]}  a6 {[%clk 0:01:14]} 22. Ba4 {[%clk 0:00:47]}  Rd7 {[%clk 0:01:04]} 23. Be3 {[%clk 0:00:38]}  b5 {[%clk 0:01:02]} 24. Bb3 {[%clk 0:00:38]}  Nge7 {[%clk 0:01:00]} 25. g4 {[%clk 0:00:37]}  Na5 {[%clk 0:00:52]} 26. Rd2 {[%clk 0:00:26]}  Nc4 {[%clk 0:00:31]} 27. Bxc4 {[%clk 0:00:26]}  bxc4 {[%clk 0:00:32]} 28. Rfd1 {[%clk 0:00:26]}  Rb8 {[%clk 0:00:29]} 29. Bc5 {[%clk 0:00:23]}  Rb5 {[%clk 0:00:27]} 30. Ba3 {[%clk 0:00:21]}  g5 {[%clk 0:00:22]} 31. Nd4 {[%clk 0:00:17]}  Bxd4 {[%clk 0:00:19]} 32. Rxd4 {[%clk 0:00:18]}  Ng6 {[%clk 0:00:17]} 33. Rxc4 {[%clk 0:00:18]}  Ne5 {[%clk 0:00:17]} 34. Ra4 {[%clk 0:00:17]}  a5 {[%clk 0:00:14]} 35. Kg2 {[%clk 0:00:16]}  Ng6 {[%clk 0:00:14]} 36. Rad4 {[%clk 0:00:14]}  Nf4+ {[%clk 0:00:14]} 37. Kf3 {[%clk 0:00:14]}  Ne6 {[%clk 0:00:13]} 38. R4d2 {[%clk 0:00:13]}  d4 {[%clk 0:00:11]} 39. cxd4 {[%clk 0:00:13]}  Rbd5 {[%clk 0:00:12]} 40. b3 {[%clk 0:00:12]}  Kg6 {[%clk 0:00:09]} 41. Bb2 {[%clk 0:00:12]}  f5 {[%clk 0:00:09]} 42. gxf5+ {[%clk 0:00:11]}  Kxf5 {[%clk 0:00:10]} 43. Kg3 {[%clk 0:00:10]}  h5 {[%clk 0:00:10]} 44. h3 {[%clk 0:00:07]}  Nf4 {[%clk 0:00:09]} 45. Re1 {[%clk 0:00:07]}  h4+ {[%clk 0:00:05]} 46. Kh2 {[%clk 0:00:07]}  g4 {[%clk 0:00:06]} 47. hxg4+ {[%clk 0:00:07]}  Kxg4 {[%clk 0:00:07]} 48. Re3 {[%clk 0:00:06]}  Rb7 {[%clk 0:00:05]} 49. Rd1 {[%clk 0:00:06]}  Kf5 {[%clk 0:00:05]} 50. Re5+ {[%clk 0:00:05]}  Rxe5 {[%clk 0:00:05]} 51. dxe5 {[%clk 0:00:06]}  a4 {[%clk 0:00:04]} 52. Bc1 {[%clk 0:00:03]}  axb3 {[%clk 0:00:02]} 53. axb3 {[%clk 0:00:04]}  Rxb3 {[%clk 0:00:01]} 54. Bxf4 {[%clk 0:00:04]}  Kxf4 {[%clk 0:00:02]} 55. Re1 {[%clk 0:00:05]}  Rb7 {[%clk 0:00:02]} 56. Kh3 {[%clk 0:00:04]}  Kf5 {[%clk 0:00:01]} 57. Kxh4 {[%clk 0:00:04]}  Ke6 {[%clk 0:00:02]} 58. f4 {[%clk 0:00:04]}  Rf7 {[%clk 0:00:03]} 59. Kg4 {[%clk 0:00:04]}  Rg7+ {[%clk 0:00:03]} 60. Kf3 {[%clk 0:00:04]}  Rf7 {[%clk 0:00:04]} 61. Ke4 {[%clk 0:00:05]} 1-0


[Site "https://www.chess.com"]

[Event "Titled Tuesday Blitz June 6 Early 2023"]
[White "Pulpan, Jakub"]
[Black "Wadsworth, Matthew J"]
[WhiteFideId "302759"]
[BlackFideId "415804"]
[WhiteElo "2484"]
[BlackElo "2347"]
[Result "1/2-1/2"]
[Round "3"]
[TimeControl "180+2"]
[Date "2023.06.06"]
[WhiteClock "0:00:13"]
[BlackClock "0:00:04"]
[Board "47"]

1. b3 {[%clk 0:01:54]}  d5 {[%clk 0:02:53]} 2. Bb2 {[%clk 0:01:54]}  Nf6 {[%clk 0:02:53]} 3. Nf3 {[%clk 0:01:52]}  Bg4 {[%clk 0:02:52]} 4. e3 {[%clk 0:01:52]}  e6 {[%clk 0:02:50]} 5. Be2 {[%clk 0:01:52]}  Be7 {[%clk 0:02:36]} 6. c4 {[%clk 0:01:52]}  c6 {[%clk 0:02:35]} 7. Nc3 {[%clk 0:01:51]}  O-O {[%clk 0:02:34]} 8. h3 {[%clk 0:01:50]}  Bh5 {[%clk 0:02:33]} 9. Ne5 {[%clk 0:01:49]}  Bxe2 {[%clk 0:02:32]} 10. Qxe2 {[%clk 0:01:50]}  Nbd7 {[%clk 0:02:32]} 11. Nxd7 {[%clk 0:01:50]}  Qxd7 {[%clk 0:02:32]} 12. O-O {[%clk 0:01:51]}  Rfd8 {[%clk 0:02:28]} 13. d4 {[%clk 0:01:47]}  Rac8 {[%clk 0:02:26]} 14. Rfd1 {[%clk 0:01:47]}  a6 {[%clk 0:02:15]} 15. e4 {[%clk 0:01:47]}  dxe4 {[%clk 0:02:11]} 16. Nxe4 {[%clk 0:01:47]}  Nxe4 {[%clk 0:02:11]} 17. Qxe4 {[%clk 0:01:48]}  Bf6 {[%clk 0:02:12]} 18. Rd2 {[%clk 0:01:44]}  c5 {[%clk 0:01:58]} 19. Rad1 {[%clk 0:01:44]}  Qc7 {[%clk 0:01:41]} 20. Qf3 {[%clk 0:01:20]}  h6 {[%clk 0:01:37]} 21. g3 {[%clk 0:01:15]}  b5 {[%clk 0:01:01]} 22. cxb5 {[%clk 0:01:05]}  axb5 {[%clk 0:01:01]} 23. dxc5 {[%clk 0:01:04]}  Bxb2 {[%clk 0:00:58]} 24. Rxb2 {[%clk 0:01:04]}  Rxd1+ {[%clk 0:00:57]} 25. Qxd1 {[%clk 0:01:05]}  Qxc5 {[%clk 0:00:57]} 26. a4 {[%clk 0:01:02]}  Qc1 {[%clk 0:00:26]} 27. Rb1 {[%clk 0:00:57]}  Qxd1+ {[%clk 0:00:24]} 28. Rxd1 {[%clk 0:00:58]}  Rc3 {[%clk 0:00:23]} 29. Rb1 {[%clk 0:00:31]}  bxa4 {[%clk 0:00:23]} 30. bxa4 {[%clk 0:00:32]}  Ra3 {[%clk 0:00:23]} 31. Rb4 {[%clk 0:00:33]}  g5 {[%clk 0:00:18]} 32. h4 {[%clk 0:00:33]}  Kg7 {[%clk 0:00:17]} 33. Kg2 {[%clk 0:00:33]}  Kg6 {[%clk 0:00:17]} 34. Kf1 {[%clk 0:00:33]}  Ra2 {[%clk 0:00:17]} 35. Ke1 {[%clk 0:00:34]}  f5 {[%clk 0:00:14]} 36. hxg5 {[%clk 0:00:34]}  hxg5 {[%clk 0:00:14]} 37. f3 {[%clk 0:00:34]}  Kf6 {[%clk 0:00:12]} 38. g4 {[%clk 0:00:34]}  fxg4 {[%clk 0:00:12]} 39. Rxg4 {[%clk 0:00:35]}  Kf5 {[%clk 0:00:12]} 40. Kf1 {[%clk 0:00:35]}  e5 {[%clk 0:00:11]} 41. Rb4 {[%clk 0:00:35]}  Kf6 {[%clk 0:00:08]} 42. Ke1 {[%clk 0:00:34]}  Kf5 {[%clk 0:00:08]} 43. Kd1 {[%clk 0:00:33]}  Kf6 {[%clk 0:00:08]} 44. Rc4 {[%clk 0:00:34]}  Ke6 {[%clk 0:00:05]} 45. Rb4 {[%clk 0:00:25]}  Kd5 {[%clk 0:00:05]} 46. Rg4 {[%clk 0:00:23]}  Ke6 {[%clk 0:00:02]} 47. Kc1 {[%clk 0:00:20]}  Kd5 {[%clk 0:00:01]} 48. Kb1 {[%clk 0:00:16]}  Rf2 {[%clk 0:00:01]} 49. Rxg5 {[%clk 0:00:14]}  Rxf3 {[%clk 0:00:01]} 50. Kb2 {[%clk 0:00:15]}  Kd4 {[%clk 0:00:01]} 51. a5 {[%clk 0:00:14]}  e4 {[%clk 0:00:01]} 52. a6 {[%clk 0:00:13]}  Rf8 {[%clk 0:00:01]} 53. Kb3 {[%clk 0:00:12]}  Ra8 {[%clk 0:00:01]} 54. Rg6 {[%clk 0:00:13]}  Kd3 {[%clk 0:00:01]} 55. Rd6+ {[%clk 0:00:12]}  Ke2 {[%clk 0:00:01]} 56. Kc4 {[%clk 0:00:13]}  e3 {[%clk 0:00:01]} 57. Kd4 {[%clk 0:00:11]}  Kf2 {[%clk 0:00:01]} 58. Rf6+ {[%clk 0:00:11]}  Ke2 {[%clk 0:00:02]} 59. Re6 {[%clk 0:00:11]}  Kd2 {[%clk 0:00:02]} 60. Rxe3 {[%clk 0:00:08]}  Rxa6 {[%clk 0:00:02]} 61. Rd3+ {[%clk 0:00:07]}  Ke2 {[%clk 0:00:02]} 62. Re3+ {[%clk 0:00:08]}  Kd2 {[%clk 0:00:02]} 63. Rh3 {[%clk 0:00:09]}  Ra8 {[%clk 0:00:02]} 64. Rh2+ {[%clk 0:00:09]}  Kd1 {[%clk 0:00:02]} 65. Ke3 {[%clk 0:00:10]}  Re8+ {[%clk 0:00:02]} 66. Kd3 {[%clk 0:00:11]}  Rd8+ {[%clk 0:00:03]} 67. Ke3 {[%clk 0:00:11]}  Re8+ {[%clk 0:00:03]} 68. Kd3 {[%clk 0:00:12]}  Rd8+ {[%clk 0:00:04]} 69. Ke3 {[%clk 0:00:13]}  Re8+ {[%clk 0:00:04]} 1/2-1/2


[Site "https://www.chess.com"]

[Event "Titled Tuesday Blitz June 6 Early 2023"]
[White "Csonka, Balazs"]
[Black "MKlose11"]
[WhiteFideId "742910"]
[WhiteElo "2404"]
[BlackElo "2560"]
[Result "1-0"]
[Round "3"]
[TimeControl "180+2"]
[Date "2023.06.06"]
[WhiteClock "0:00:04"]
[BlackClock "0:00:19"]
[Board "48"]

1. c4 {[%clk 0:03:00]}  Nf6 {[%clk 0:02:51]} 2. g3 {[%clk 0:02:59]}  c5 {[%clk 0:02:50]} 3. Bg2 {[%clk 0:02:59]}  Nc6 {[%clk 0:02:50]} 4. Nc3 {[%clk 0:02:58]}  d6 {[%clk 0:02:51]} 5. e3 {[%clk 0:02:49]}  g6 {[%clk 0:02:48]} 6. Nge2 {[%clk 0:02:48]}  Bg7 {[%clk 0:02:46]} 7. O-O {[%clk 0:02:48]}  O-O {[%clk 0:02:45]} 8. d4 {[%clk 0:02:49]}  Bd7 {[%clk 0:02:37]} 9. h3 {[%clk 0:02:31]}  Qc8 {[%clk 0:02:33]} 10. Kh2 {[%clk 0:02:31]}  Rb8 {[%clk 0:02:32]} 11. b3 {[%clk 0:02:22]}  b6 {[%clk 0:02:20]} 12. Bb2 {[%clk 0:02:20]}  a6 {[%clk 0:02:19]} 13. Rc1 {[%clk 0:02:16]}  Re8 {[%clk 0:02:17]} 14. Qd2 {[%clk 0:02:10]}  h5 {[%clk 0:02:02]} 15. Nd5 {[%clk 0:01:50]}  Qd8 {[%clk 0:01:49]} 16. dxc5 {[%clk 0:01:26]}  dxc5 {[%clk 0:01:41]} 17. Rfd1 {[%clk 0:01:08]}  Nxd5 {[%clk 0:01:32]} 18. Bxg7 {[%clk 0:01:06]}  Kxg7 {[%clk 0:00:55]} 19. Qxd5 {[%clk 0:01:02]}  Rb7 {[%clk 0:00:56]} 20. Qe4 {[%clk 0:00:27]}  Rc7 {[%clk 0:00:51]} 21. Nf4 {[%clk 0:00:21]}  e6 {[%clk 0:00:38]} 22. Rd6 {[%clk 0:00:17]}  Qe7 {[%clk 0:00:31]} 23. Rcd1 {[%clk 0:00:17]}  Nb8 {[%clk 0:00:25]} 24. Rxb6 {[%clk 0:00:16]}  Bc6 {[%clk 0:00:23]} 25. Qe5+ {[%clk 0:00:10]}  f6 {[%clk 0:00:24]} 26. Qc3 {[%clk 0:00:09]}  Bxg2 {[%clk 0:00:23]} 27. Rxe6 {[%clk 0:00:08]}  Qf7 {[%clk 0:00:20]} 28. Rxe8 {[%clk 0:00:08]}  Qxe8 {[%clk 0:00:20]} 29. Kxg2 {[%clk 0:00:07]}  Nc6 {[%clk 0:00:20]} 30. Nd5 {[%clk 0:00:06]}  Rf7 {[%clk 0:00:19]} 31. f3 {[%clk 0:00:05]}  h4 {[%clk 0:00:18]} 32. g4 {[%clk 0:00:05]}  Qb8 {[%clk 0:00:18]} 33. f4 {[%clk 0:00:05]}  Qe8 {[%clk 0:00:18]} 34. Kf3 {[%clk 0:00:06]}  Qe6 {[%clk 0:00:16]} 35. Rd3 {[%clk 0:00:06]}  Ne7 {[%clk 0:00:14]} 36. Nxe7 {[%clk 0:00:04]}  Rxe7 {[%clk 0:00:15]} 37. Kf2 {[%clk 0:00:02]}  Qe4 {[%clk 0:00:15]} 38. Rd6 {[%clk 0:00:03]}  Rf7 {[%clk 0:00:15]} 39. Qd3 {[%clk 0:00:03]}  Qh1 {[%clk 0:00:15]} 40. Qf1 {[%clk 0:00:03]}  Qe4 {[%clk 0:00:15]} 41. Qg2 {[%clk 0:00:02]}  Qc2+ {[%clk 0:00:15]} 42. Kf3 {[%clk 0:00:03]}  Qd1+ {[%clk 0:00:14]} 43. Rxd1 {[%clk 0:00:02]}  f5 {[%clk 0:00:14]} 44. Qd2 {[%clk 0:00:02]}  Re7 {[%clk 0:00:15]} 45. g5 {[%clk 0:00:03]}  Kh7 {[%clk 0:00:16]} 46. Qc3 {[%clk 0:00:03]}  Rg7 {[%clk 0:00:16]} 47. Qf6 {[%clk 0:00:03]}  Re7 {[%clk 0:00:17]} 48. Rd6 {[%clk 0:00:03]}  Rg7 {[%clk 0:00:17]} 49. Re6 {[%clk 0:00:03]}  a5 {[%clk 0:00:18]} 50. Re7 {[%clk 0:00:04]}  a4 {[%clk 0:00:19]} 51. Qxg7# {[%clk 0:00:04]} 1-0


[Site "https://www.chess.com"]

[Event "Titled Tuesday Blitz June 6 Early 2023"]
[White "Petrosian, Karlen"]
[Black "Goffredo_Fofi"]
[WhiteFideId "4176146"]
[WhiteElo "2345"]
[BlackElo "2484"]
[Result "1-0"]
[Round "3"]
[TimeControl "180+2"]
[Date "2023.06.06"]
[WhiteClock "0:00:06"]
[BlackClock "0:00:17"]
[Board "50"]

1. e4 {[%clk 0:03:00]}  Nf6 {[%clk 0:03:00]} 2. Nc3 {[%clk 0:03:00]}  e5 {[%clk 0:02:59]} 3. Bc4 {[%clk 0:02:59]}  Nxe4 {[%clk 0:02:58]} 4. Qh5 {[%clk 0:03:00]}  Nd6 {[%clk 0:02:58]} 5. Qxe5+ {[%clk 0:03:00]}  Qe7 {[%clk 0:02:52]} 6. Qxe7+ {[%clk 0:03:01]}  Bxe7 {[%clk 0:02:53]} 7. Bb3 {[%clk 0:02:59]}  Nf5 {[%clk 0:02:49]} 8. Nf3 {[%clk 0:02:58]}  c6 {[%clk 0:02:49]} 9. Ne2 {[%clk 0:02:57]}  d5 {[%clk 0:02:46]} 10. c3 {[%clk 0:02:57]}  O-O {[%clk 0:02:45]} 11. Bc2 {[%clk 0:02:57]}  Nd6 {[%clk 0:02:34]} 12. Ng3 {[%clk 0:02:56]}  Nd7 {[%clk 0:02:33]} 13. O-O {[%clk 0:02:53]}  g6 {[%clk 0:02:11]} 14. Re1 {[%clk 0:02:00]}  Re8 {[%clk 0:01:51]} 15. d4 {[%clk 0:01:53]}  Nf6 {[%clk 0:01:47]} 16. Bf4 {[%clk 0:01:49]}  Be6 {[%clk 0:01:33]} 17. Ng5 {[%clk 0:01:42]}  Bd7 {[%clk 0:01:32]} 18. Rxe7 {[%clk 0:01:38]}  Rxe7 {[%clk 0:01:32]} 19. Bxd6 {[%clk 0:01:38]}  Ree8 {[%clk 0:01:33]} 20. h3 {[%clk 0:01:34]}  h6 {[%clk 0:01:27]} 21. Nf3 {[%clk 0:01:33]}  Nh7 {[%clk 0:01:25]} 22. a4 {[%clk 0:01:19]}  Nf8 {[%clk 0:01:25]} 23. a5 {[%clk 0:01:16]}  a6 {[%clk 0:01:24]} 24. Bf4 {[%clk 0:01:16]}  Kg7 {[%clk 0:01:22]} 25. Ne5 {[%clk 0:01:15]}  Be6 {[%clk 0:01:19]} 26. Nd3 {[%clk 0:01:13]}  Nd7 {[%clk 0:01:19]} 27. Bd6 {[%clk 0:01:12]}  h5 {[%clk 0:01:11]} 28. Nc5 {[%clk 0:01:08]}  Nxc5 {[%clk 0:01:10]} 29. Bxc5 {[%clk 0:01:09]}  h4 {[%clk 0:01:09]} 30. Nf1 {[%clk 0:01:09]}  Bd7 {[%clk 0:01:04]} 31. Ne3 {[%clk 0:01:08]}  Re6 {[%clk 0:01:00]} 32. Bb6 {[%clk 0:01:03]}  Rae8 {[%clk 0:01:00]} 33. Bc7 {[%clk 0:01:02]}  Bc8 {[%clk 0:00:59]} 34. Bd3 {[%clk 0:01:01]}  R6e7 {[%clk 0:00:55]} 35. Bf4 {[%clk 0:01:00]}  f6 {[%clk 0:00:53]} 36. Kf1 {[%clk 0:00:57]}  g5 {[%clk 0:00:53]} 37. Bd6 {[%clk 0:00:55]}  Re6 {[%clk 0:00:51]} 38. Ba3 {[%clk 0:00:54]}  Kf7 {[%clk 0:00:45]} 39. b3 {[%clk 0:00:54]}  Bd7 {[%clk 0:00:44]} 40. c4 {[%clk 0:00:54]}  Rxe3 {[%clk 0:00:41]} 41. fxe3 {[%clk 0:00:53]}  Rxe3 {[%clk 0:00:42]} 42. Rd1 {[%clk 0:00:52]}  g4 {[%clk 0:00:42]} 43. Bc1 {[%clk 0:00:51]}  Re8 {[%clk 0:00:37]} 44. hxg4 {[%clk 0:00:48]}  Bxg4 {[%clk 0:00:38]} 45. Re1 {[%clk 0:00:49]}  Rd8 {[%clk 0:00:34]} 46. c5 {[%clk 0:00:44]}  Rg8 {[%clk 0:00:32]} 47. Kf2 {[%clk 0:00:43]}  Be6 {[%clk 0:00:31]} 48. Bf4 {[%clk 0:00:42]}  Rg4 {[%clk 0:00:31]} 49. Kf3 {[%clk 0:00:37]}  Bd7 {[%clk 0:00:29]} 50. b4 {[%clk 0:00:36]}  Rg8 {[%clk 0:00:27]} 51. Rh1 {[%clk 0:00:33]}  Rh8 {[%clk 0:00:25]} 52. g4 {[%clk 0:00:28]}  Be6 {[%clk 0:00:23]} 53. Bf5 {[%clk 0:00:28]}  Bxf5 {[%clk 0:00:21]} 54. gxf5 {[%clk 0:00:29]}  h3 {[%clk 0:00:21]} 55. Rh2 {[%clk 0:00:29]}  Rh5 {[%clk 0:00:18]} 56. Kg3 {[%clk 0:00:28]}  Rxf5 {[%clk 0:00:17]} 57. Rxh3 {[%clk 0:00:29]}  Ke6 {[%clk 0:00:17]} 58. Kg4 {[%clk 0:00:06]} 1-0


[Site "https://www.chess.com"]

[Event "Titled Tuesday Blitz June 6 Early 2023"]
[White "Arencibia Monduy, Antonio"]
[Black "Yuan, Qingyu"]
[WhiteFideId "3507939"]
[BlackFideId "8609772"]
[WhiteElo "2481"]
[BlackElo "2359"]
[Result "1-0"]
[Round "3"]
[TimeControl "180+2"]
[Date "2023.06.06"]
[WhiteClock "0:00:06"]
[BlackClock "0:00:02"]
[Board "51"]

1. e4 {[%clk 0:03:00]}  e5 {[%clk 0:02:58]} 2. Bc4 {[%clk 0:03:00]}  Nf6 {[%clk 0:02:58]} 3. d3 {[%clk 0:03:00]}  Nc6 {[%clk 0:02:59]} 4. Nf3 {[%clk 0:03:00]}  Bc5 {[%clk 0:02:58]} 5. c3 {[%clk 0:03:00]}  O-O {[%clk 0:02:57]} 6. Bb3 {[%clk 0:03:00]}  d5 {[%clk 0:02:57]} 7. Qe2 {[%clk 0:02:59]}  dxe4 {[%clk 0:02:45]} 8. dxe4 {[%clk 0:02:59]}  a5 {[%clk 0:02:46]} 9. Bg5 {[%clk 0:02:52]}  Qe7 {[%clk 0:02:29]} 10. a4 {[%clk 0:02:38]}  Be6 {[%clk 0:02:07]} 11. Nbd2 {[%clk 0:02:38]}  Bxb3 {[%clk 0:02:04]} 12. Nxb3 {[%clk 0:02:38]}  Bb6 {[%clk 0:01:55]} 13. Rd1 {[%clk 0:02:34]}  Rad8 {[%clk 0:01:50]} 14. O-O {[%clk 0:02:33]}  Qe6 {[%clk 0:01:49]} 15. Nbd2 {[%clk 0:02:21]}  h6 {[%clk 0:01:46]} 16. Bxf6 {[%clk 0:02:17]}  Qxf6 {[%clk 0:01:46]} 17. Nc4 {[%clk 0:02:17]}  Bc5 {[%clk 0:01:45]} 18. Ne3 {[%clk 0:02:15]}  Bxe3 {[%clk 0:01:45]} 19. Qxe3 {[%clk 0:02:16]}  Qe6 {[%clk 0:01:36]} 20. Qc5 {[%clk 0:02:13]}  b6 {[%clk 0:01:36]} 21. Qb5 {[%clk 0:01:56]}  f6 {[%clk 0:01:12]} 22. b4 {[%clk 0:01:47]}  Na7 {[%clk 0:00:54]} 23. Qa6 {[%clk 0:01:41]}  Nc6 {[%clk 0:00:34]} 24. Qb5 {[%clk 0:01:27]}  Na7 {[%clk 0:00:34]} 25. Qe2 {[%clk 0:01:21]}  Qc6 {[%clk 0:00:30]} 26. b5 {[%clk 0:01:00]}  Qc5 {[%clk 0:00:27]} 27. Qa2+ {[%clk 0:00:56]}  Kh7 {[%clk 0:00:25]} 28. Qb3 {[%clk 0:00:52]}  Nc8 {[%clk 0:00:24]} 29. Nh4 {[%clk 0:00:45]}  Nd6 {[%clk 0:00:18]} 30. Qc2 {[%clk 0:00:24]}  Nc4 {[%clk 0:00:17]} 31. Nf5 {[%clk 0:00:16]}  g6 {[%clk 0:00:15]} 32. Ng3 {[%clk 0:00:15]}  h5 {[%clk 0:00:15]} 33. h4 {[%clk 0:00:15]}  Kg7 {[%clk 0:00:15]} 34. Kh2 {[%clk 0:00:14]}  Rd6 {[%clk 0:00:14]} 35. Rxd6 {[%clk 0:00:13]}  Qxd6 {[%clk 0:00:10]} 36. Rd1 {[%clk 0:00:13]}  Qe7 {[%clk 0:00:10]} 37. Qd3 {[%clk 0:00:13]}  Nd6 {[%clk 0:00:09]} 38. Nf1 {[%clk 0:00:10]}  Rd8 {[%clk 0:00:10]} 39. Qe2 {[%clk 0:00:10]}  Nb7 {[%clk 0:00:10]} 40. Ne3 {[%clk 0:00:09]}  Nc5 {[%clk 0:00:07]} 41. Nd5 {[%clk 0:00:09]}  Qf7 {[%clk 0:00:06]} 42. Qc2 {[%clk 0:00:07]}  Rd6 {[%clk 0:00:05]} 43. c4 {[%clk 0:00:07]}  Ne6 {[%clk 0:00:05]} 44. Qd2 {[%clk 0:00:05]}  Nc5 {[%clk 0:00:05]} 45. Qc2 {[%clk 0:00:05]}  Qd7 {[%clk 0:00:05]} 46. f3 {[%clk 0:00:05]}  Ne6 {[%clk 0:00:04]} 47. Qd2 {[%clk 0:00:04]}  Nc5 {[%clk 0:00:04]} 48. Qc2 {[%clk 0:00:05]}  Qd8 {[%clk 0:00:05]} 49. Qd2 {[%clk 0:00:04]}  Nxa4 {[%clk 0:00:05]} 50. Qe3 {[%clk 0:00:04]}  Nc5 {[%clk 0:00:05]} 51. f4 {[%clk 0:00:05]}  exf4 {[%clk 0:00:04]} 52. Qxf4 {[%clk 0:00:05]}  Qd7 {[%clk 0:00:02]} 53. Re1 {[%clk 0:00:05]}  Qe6 {[%clk 0:00:02]} 54. e5 {[%clk 0:00:05]}  fxe5 {[%clk 0:00:02]} 55. Rxe5 {[%clk 0:00:05]}  Qg4 {[%clk 0:00:01]} 56. Re7+ {[%clk 0:00:05]}  Kg8 {[%clk 0:00:01]} 57. Qf7+ {[%clk 0:00:05]}  Kh8 {[%clk 0:00:02]} 58. Qg7# {[%clk 0:00:06]} 1-0


[Site "https://www.chess.com"]

[Event "Titled Tuesday Blitz June 6 Early 2023"]
[White "Prestia, Paris"]
[Black "Fernandez Garcia, Gumersindo"]
[WhiteFideId "30925959"]
[BlackFideId "24516740"]
[WhiteElo "2680"]
[BlackElo "2093"]
[Result "1-0"]
[Round "3"]
[TimeControl "180+2"]
[Date "2023.06.06"]
[WhiteClock "0:00:15"]
[BlackClock "0:00:15"]
[Board "54"]

1. d4 {[%clk 0:03:00]}  Nf6 {[%clk 0:02:59]} 2. Bg5 {[%clk 0:03:00]}  e6 {[%clk 0:02:55]} 3. Nd2 {[%clk 0:03:00]}  c5 {[%clk 0:02:51]} 4. e3 {[%clk 0:03:00]}  h6 {[%clk 0:02:49]} 5. Bh4 {[%clk 0:03:00]}  Be7 {[%clk 0:02:46]} 6. c3 {[%clk 0:03:01]}  d6 {[%clk 0:02:42]} 7. Bd3 {[%clk 0:03:01]}  Nbd7 {[%clk 0:02:40]} 8. Ngf3 {[%clk 0:03:01]}  b6 {[%clk 0:02:39]} 9. a4 {[%clk 0:03:01]}  a6 {[%clk 0:02:37]} 10. Qe2 {[%clk 0:03:01]}  Bb7 {[%clk 0:02:37]} 11. h3 {[%clk 0:03:00]}  O-O {[%clk 0:02:38]} 12. O-O {[%clk 0:02:58]}  Re8 {[%clk 0:02:35]} 13. Rfe1 {[%clk 0:02:57]}  Qc7 {[%clk 0:02:24]} 14. Nc4 {[%clk 0:02:56]}  Rad8 {[%clk 0:02:18]} 15. b4 {[%clk 0:02:33]}  cxd4 {[%clk 0:02:15]} 16. cxd4 {[%clk 0:02:33]}  d5 {[%clk 0:02:14]} 17. Nce5 {[%clk 0:02:33]}  Bxb4 {[%clk 0:01:53]} 18. Rec1 {[%clk 0:02:32]}  Qd6 {[%clk 0:01:51]} 19. Bxa6 {[%clk 0:02:13]}  Bxa6 {[%clk 0:01:47]} 20. Qxa6 {[%clk 0:02:14]}  Ra8 {[%clk 0:01:40]} 21. Qb5 {[%clk 0:01:59]}  Ba5 {[%clk 0:01:35]} 22. Rc6 {[%clk 0:01:58]}  Qf8 {[%clk 0:01:31]} 23. Rc7 {[%clk 0:01:55]}  Nxe5 {[%clk 0:01:28]} 24. Nxe5 {[%clk 0:01:56]}  Re7 {[%clk 0:01:19]} 25. Rac1 {[%clk 0:01:48]}  Rae8 {[%clk 0:01:17]} 26. Ng4 {[%clk 0:01:29]}  Rxc7 {[%clk 0:01:16]} 27. Nxf6+ {[%clk 0:01:27]}  gxf6 {[%clk 0:01:15]} 28. Rxc7 {[%clk 0:01:28]}  Kg7 {[%clk 0:01:10]} 29. Qe2 {[%clk 0:01:14]}  f5 {[%clk 0:01:06]} 30. Qf3 {[%clk 0:01:14]}  Rc8 {[%clk 0:00:59]} 31. Qg3+ {[%clk 0:01:14]}  Kh7 {[%clk 0:00:57]} 32. Rxc8 {[%clk 0:00:53]}  Qxc8 {[%clk 0:00:58]} 33. Bf6 {[%clk 0:00:53]}  Qg8 {[%clk 0:00:58]} 34. Qd6 {[%clk 0:00:51]}  Kg6 {[%clk 0:00:56]} 35. Bd8 {[%clk 0:00:45]}  Kh7 {[%clk 0:00:53]} 36. Bxb6 {[%clk 0:00:44]}  Bxb6 {[%clk 0:00:18]} 37. Qxb6 {[%clk 0:00:45]}  Qc8 {[%clk 0:00:18]} 38. Qc5 {[%clk 0:00:44]}  Qb7 {[%clk 0:00:16]} 39. a5 {[%clk 0:00:44]}  Qb1+ {[%clk 0:00:16]} 40. Kh2 {[%clk 0:00:44]}  Qa2 {[%clk 0:00:17]} 41. Kg3 {[%clk 0:00:41]}  Kg6 {[%clk 0:00:16]} 42. h4 {[%clk 0:00:40]}  h5 {[%clk 0:00:16]} 43. Qf8 {[%clk 0:00:14]}  Qxa5 {[%clk 0:00:14]} 44. Qg8+ {[%clk 0:00:15]}  Kf6 {[%clk 0:00:15]} 45. Qg5# {[%clk 0:00:15]} 1-0


[Site "https://www.chess.com"]